bitfinex-derivatives/quotes_BTCF0:USTF0_20230702
["timestamp","ask_amount","ask_price","bid_price","bid_amount"]
[1688306575285,0.39430184,30546.0,30545.0,0.32345382]
[1688306575676,0.43094705,30546.0,30545.0,0.32345382]
[1688306575877,0.43094705,30546.0,30545.0,0.32338325]
[1688306576886,0.41292573,30546.0,30545.0,0.32338325]
[1688306577290,0.43094705,30546.0,30545.0,0.32338325]
[1688306577788,0.32932199,30546.0,30545.0,0.32338325]
[1688306577983,0.43094705,30546.0,30545.0,0.32338325]
[1688306578489,0.41292573,30546.0,30545.0,0.32338325]
[1688306578691,0.43094705,30546.0,30545.0,0.32338325]
[1688306581391,0.41292573,30546.0,30545.0,0.32338325]
[1688306581687,0.43094705,30546.0,30545.0,0.32338325]
[1688306582079,0.41292573,30546.0,30545.0,0.32338325]
[1688306582284,0.39430184,30546.0,30545.0,0.32338325]
[1688306582987,0.29267678,30546.0,30545.0,0.36046239]
[1688306583288,0.39430184,30546.0,30545.0,0.36046239]
[1688306583886,0.39430184,30546.0,30545.0,0.3422327]
[1688306585183,0.29267678,30546.0,30545.0,0.3422327]
[1688306585491,0.39430184,30546.0,30545.0,0.3422327]
[1688306586387,0.39430184,30546.0,30545.0,0.32338325]
[1688306588683,0.39430184,30546.0,30545.0,0.3231709]
[1688306589289,0.41292573,30546.0,30545.0,0.3231709]
[1688306590694,0.41292573,30546.0,30545.0,0.34140059]
[1688306592090,0.31130067,30546.0,30545.0,0.3231709]
[1688306592594,0.41292573,30546.0,30545.0,0.3231709]
[1688306594087,0.31130067,30546.0,30545.0,0.3231709]
[1688306594287,0.41292573,30546.0,30545.0,0.3231709]
[1688306594888,0.27330231,30546.0,30545.0,0.36025004]
[1688306595093,0.02560231,30546.0,30545.0,0.60625004]
[1688306595491,0.2477,30547.0,30545.0,0.60625004]
[1688306595692,0.2477,30547.0,30546.0,0.2469]
[1688306595898,0.2477,30547.0,30546.0,0.30362214]
[1688306597991,0.267342,30547.0,30546.0,0.30362214]
[1688306601298,0.267342,30547.0,30546.0,0.30352036]
[1688306602699,0.267342,30547.0,30546.0,0.05672214]
[1688306609106,0.3343577,30547.0,30546.0,0.05672214]
[1688306610396,0.3343577,30547.0,30546.0,0.03849245]
[1688306610597,0.3343577,30547.0,30546.0,0.05672214]
[1688306611400,0.35298159,30547.0,30546.0,0.019643]
[1688306612508,0.3343577,30547.0,30546.0,0.03849245]
[1688306613913,0.3343577,30547.0,30546.0,0.05672214]
[1688306614211,0.3343577,30547.0,30546.0,0.03849245]
[1688306615412,0.3343577,30547.0,30546.0,0.03830589]
[1688306615606,0.3343577,30547.0,30546.0,0.05653558]
[1688306615800,0.3343577,30547.0,30546.0,0.03830589]
[1688306616511,0.3343577,30547.0,30546.0,0.05653558]
[1688306616703,0.3343577,30547.0,30546.0,0.03566964]
[1688306617106,0.3343577,30547.0,30546.0,0.05389933]
[1688306618617,0.3343577,30547.0,30546.0,0.03566964]
[1688306619418,0.3343577,30547.0,30546.0,0.05389933]
[1688306622012,0.3343577,30547.0,30546.0,0.03566964]
[1688306622713,0.3343577,30547.0,30546.0,0.05389933]
[1688306623116,0.3343577,30547.0,30546.0,0.03566964]
[1688306625016,0.43598276,30547.0,30546.0,0.03566964]
[1688306626614,0.43598276,30547.0,30546.0,0.05389933]
[1688306627119,0.43598276,30547.0,30546.0,0.03566964]
[1688306627321,0.43598276,30547.0,30546.0,0.01682019]
[1688306628113,0.47262797,30547.0,30546.0,0.01682019]
[1688306628419,0.45460665,30547.0,30546.0,0.01682019]
[1688306629110,0.35298159,30547.0,30546.0,0.01682019]
[1688306629511,0.3343577,30547.0,30546.0,0.01682019]
[1688306630620,0.3343577,30547.0,30546.0,0.05389933]
[1688306631518,0.35298159,30547.0,30546.0,0.01661035]
[1688306631923,0.35298159,30547.0,30546.0,0.03484004]
[1688306632416,0.3343577,30547.0,30546.0,0.05368949]
[1688306634014,0.35298159,30547.0,30546.0,0.01661035]
[1688306634619,0.3343577,30547.0,30546.0,0.03484004]
[1688306635225,0.3343577,30547.0,30546.0,0.05368949]
[1688306635425,0.3343577,30547.0,30546.0,0.0354598]
[1688306637021,0.3343577,30547.0,30546.0,0.05368949]
[1688306639333,0.267342,30547.0,30546.0,0.05368949]
[1688306639629,0.267342,30547.0,30546.0,0.0354598]
[1688306639832,0.267342,30547.0,30546.0,0.05368949]
[1688306640629,0.267342,30547.0,30546.0,0.03484004]
[1688306641032,0.28596589,30547.0,30546.0,0.03484004]
[1688306641232,0.28596589,30547.0,30546.0,0.01661035]
[1688306641629,0.30398721,30547.0,30546.0,0.01661035]
[1688306642339,0.28596589,30547.0,30546.0,0.01661035]
[1688306643453,0.30398721,30547.0,30546.0,0.01661035]
[1688306644153,0.28596589,30547.0,30546.0,0.01661035]
[1688306645753,0.30398721,30547.0,30546.0,0.01661035]
[1688306645952,0.28596589,30547.0,30546.0,0.01661035]
[1688306647155,0.30398721,30547.0,30546.0,0.01661035]
[1688306649144,0.28596589,30547.0,30546.0,0.01661035]
[1688306649950,0.28596589,30547.0,30546.0,0.01652112]
[1688306650656,0.30398721,30547.0,30546.0,0.01652112]
[1688306651056,0.28596589,30547.0,30546.0,0.01652112]
[1688306651652,0.30398721,30547.0,30546.0,0.01652112]
[1688306652142,0.28596589,30547.0,30546.0,0.01652112]
[1688306652346,0.30398721,30547.0,30546.0,0.01652112]
[1688306656951,0.40561227,30547.0,30546.0,0.01652112]
[1688306659152,0.30398721,30547.0,30546.0,0.01652112]
[1688306659355,0.40561227,30547.0,30546.0,0.01652112]
[1688306660863,0.38759095,30547.0,30546.0,0.01652112]
[1688306661054,0.40561227,30547.0,30546.0,0.01652112]
[1688306662863,0.36896706,30547.0,30546.0,0.01652112]
[1688306663064,0.36896706,30547.0,30546.0,0.01641612]
[1688306663757,0.267342,30547.0,30546.0,0.01641612]
[1688306664066,0.38698838,30547.0,30546.0,0.01641612]
[1688306664357,0.28536332,30547.0,30546.0,0.01641612]
[1688306664555,0.40561227,30547.0,30546.0,0.01641612]
[1688306665461,0.30398721,30547.0,30546.0,0.01641612]
[1688306665657,0.40561227,30547.0,30546.0,0.01641612]
[1688306665964,0.30398721,30547.0,30546.0,0.01641612]
[1688306666171,0.40561227,30547.0,30546.0,0.01641612]
[1688306666854,0.30398721,30547.0,30546.0,0.01641612]
[1688306667367,0.40561227,30547.0,30546.0,0.01641612]
[1688306667959,0.30398721,30547.0,30546.0,0.01641612]
[1688306668266,0.40561227,30547.0,30546.0,0.01641612]
[1688306672265,0.40561227,30547.0,30546.0,0.04292044]
[1688306672465,0.40561227,30547.0,30546.0,0.01641612]
[1688306673662,0.30398721,30547.0,30546.0,0.01641612]
[1688306673863,0.40561227,30547.0,30546.0,0.01641612]
[1688306674263,0.30398721,30547.0,30546.0,0.01641612]
[1688306674464,0.40561227,30547.0,30546.0,0.01641612]
[1688306675274,0.40561227,30547.0,30546.0,0.01630814]
[1688306676261,0.30398721,30547.0,30546.0,0.01630814]
[1688306676768,0.40561227,30547.0,30546.0,0.01630814]
[1688306676967,0.30398721,30547.0,30546.0,0.01630814]
[1688306677167,0.40561227,30547.0,30546.0,0.01630814]
[1688306678873,0.30398721,30547.0,30546.0,0.01630814]
[1688306679177,0.40561227,30547.0,30546.0,0.01630814]
[1688306685961,0.38759095,30547.0,30546.0,0.01630814]
[1688306686176,0.40561227,30547.0,30546.0,0.01630814]
[1688306687686,0.30398721,30547.0,30546.0,0.01630814]
[1688306688187,0.30398721,30547.0,30546.0,0.01611466]
[1688306692585,0.40561227,30547.0,30546.0,0.01611466]
[1688306694377,0.30398721,30547.0,30546.0,0.01611466]
[1688306694583,0.40561227,30547.0,30546.0,0.01611466]
[1688306697180,0.30398721,30547.0,30546.0,0.01611466]
[1688306697379,0.40561227,30547.0,30546.0,0.01611466]
[1688306700088,0.30398721,30547.0,30546.0,0.01611466]
[1688306700289,0.40561227,30547.0,30546.0,0.01611466]
[1688306701491,0.41616494,30547.0,30546.0,0.01592557]
[1688306703692,0.31453988,30547.0,30546.0,0.01592557]
[1688306703883,0.41616494,30547.0,30546.0,0.01592557]
[1688306707491,0.37951973,30547.0,30546.0,0.01592557]
[1688306708596,0.41616494,30547.0,30546.0,0.01592557]
[1688306709198,0.39814362,30547.0,30546.0,0.01592557]
[1688306709500,0.41616494,30547.0,30546.0,0.01592557]
[1688306709796,0.39814362,30547.0,30546.0,0.01592557]
[1688306710702,0.41616494,30547.0,30546.0,0.01592557]
[1688306711093,0.39814362,30547.0,30546.0,0.01592557]
[1688306711499,0.41616494,30547.0,30546.0,0.01592557]
[1688306712097,0.41602372,30547.0,30546.0,0.01592557]
[1688306712288,0.3980024,30547.0,30546.0,0.01592557]
[1688306713700,0.41602372,30547.0,30546.0,0.01592557]
[1688306714000,0.3980024,30547.0,30546.0,0.01592557]
[1688306715501,0.41602372,30547.0,30546.0,0.01592557]
[1688306716401,0.3980024,30547.0,30546.0,0.01592557]
[1688306716803,0.41602372,30547.0,30546.0,0.01592557]
[1688306717302,0.3980024,30547.0,30546.0,0.01592557]
[1688306718002,0.41602372,30547.0,30546.0,0.01592557]
[1688306718204,0.31439866,30547.0,30546.0,0.01592557]
[1688306718504,0.29637734,30547.0,30546.0,0.01592557]
[1688306719402,0.31439866,30547.0,30546.0,0.01592557]
[1688306720197,0.29637734,30547.0,30546.0,0.01592557]
[1688306721699,0.31439866,30547.0,30546.0,0.01592557]
[1688306721903,0.29637734,30547.0,30546.0,0.01592557]
[1688306723003,0.31439866,30547.0,30546.0,0.01592557]
[1688306723503,0.29637734,30547.0,30546.0,0.01592557]
[1688306725397,0.29637734,30547.0,30546.0,0.01579809]
[1688306728006,0.27673534,30547.0,30546.0,0.01579809]
[1688306728813,0.25811145,30547.0,30546.0,0.05287723]
[1688306728998,0.25811145,30547.0,30546.0,0.02287723]
[1688306729203,0.25811145,30547.0,30546.0,0.04252023]
[1688306732816,0.25811145,30547.0,30546.0,0.28852023]
[1688306741622,0.25811145,30547.0,30546.0,0.28843718]
[1688306742119,0.25811145,30547.0,30546.0,0.26958773]
[1688306742323,0.27673534,30547.0,30546.0,0.26958773]
[1688306746125,0.25811145,30547.0,30546.0,0.26958773]
[1688306746719,0.34279166,30547.0,30546.0,0.28843718]
[1688306750929,0.34279166,30547.0,30546.0,0.28449245]
[1688306751430,0.34279166,30547.0,30546.0,0.28864555]
[1688306753717,0.34279166,30547.0,30546.0,0.265643]
[1688306754118,0.34279166,30547.0,30546.0,0.28449245]
[1688306755328,0.34279166,30547.0,30546.0,0.2697961]
[1688306755632,0.34279166,30547.0,30546.0,0.26965188]
[1688306755931,0.34279166,30547.0,30546.0,0.26549878]
[1688306756332,0.36141555,30547.0,30546.0,0.26965188]
[1688306756729,0.36141555,30547.0,30546.0,0.26549878]
[1688306757237,0.34279166,30547.0,30546.0,0.26549878]
[1688306759937,0.34279166,30547.0,30546.0,0.26965188]
[1688306760932,0.34279166,30547.0,30546.0,0.28434823]
[1688306761130,0.34279166,30547.0,30546.0,0.28850133]
[1688306763138,0.37964524,30547.0,30546.0,0.26549878]
[1688306763433,0.34279166,30547.0,30546.0,0.26549878]
[1688306764237,0.34279166,30547.0,30546.0,0.28850133]
[1688306766335,0.34279166,30547.0,30546.0,0.28434823]
[1688306766738,0.34279166,30547.0,30546.0,0.28850133]
[1688306768827,0.34279166,30547.0,30546.0,0.28829894]
[1688306769423,0.34279166,30547.0,30546.0,0.28414584]
[1688306770632,0.34279166,30547.0,30546.0,0.28829894]
[1688306771935,0.34279166,30547.0,30546.0,0.28414584]
[1688306772739,0.34279166,30547.0,30546.0,0.04229894]
[1688306773438,0.34279166,30547.0,30546.0,0.03814584]
[1688306774332,0.34279166,30547.0,30546.0,0.04229894]
[1688306777739,0.36102135,30547.0,30546.0,0.03814584]
[1688306778240,0.34279166,30547.0,30546.0,0.04229894]
[1688306778440,0.34279166,30547.0,30546.0,0.03814584]
[1688306778943,0.34279166,30547.0,30546.0,0.04229894]
[1688306779945,0.34279166,30547.0,30546.0,0.03814584]
[1688306780541,0.34279166,30547.0,30546.0,0.04229894]
[1688306781047,0.34279166,30547.0,30546.0,0.04215436]
[1688306782253,0.34279166,30547.0,30546.0,0.03800126]
[1688306782443,0.34279166,30547.0,30546.0,0.04215436]
[1688306782755,0.34279166,30547.0,30546.0,0.03800126]
[1688306782939,0.34279166,30547.0,30546.0,0.04215436]
[1688306784245,0.34279166,30547.0,30546.0,0.03800126]
[1688306784747,0.34279166,30547.0,30546.0,0.04215436]
[1688306786851,0.34279166,30547.0,30546.0,0.01215436]
[1688306787049,0.34279166,30547.0,30546.0,0.03179736]
[1688306793256,0.34279166,30547.0,30546.0,0.02764426]
[1688306794357,0.34279166,30547.0,30546.0,0.03179736]
[1688306799059,0.34279166,30547.0,30546.0,0.03157622]
[1688306799955,0.34279166,30547.0,30546.0,0.02742312]
[1688306800262,0.34279166,30547.0,30546.0,0.03157622]
[1688306800465,0.34279166,30547.0,30546.0,0.02742312]
[1688306801263,0.34279166,30547.0,30546.0,0.03157622]
[1688306802060,0.34279166,30547.0,30546.0,0.02742312]
[1688306802863,0.34279166,30547.0,30546.0,0.27342312]
[1688306803061,0.34279166,30547.0,30546.0,0.27757622]
[1688306812770,0.34279166,30547.0,30546.0,0.03157622]
[1688306813266,0.34279166,30547.0,30546.0,0.03140252]
[1688306821569,0.34279166,30547.0,30546.0,0.02724942]
[1688306821976,0.34279166,30547.0,30546.0,0.03140252]
[1688306826870,0.34279166,30547.0,30546.0,0.03131252]
[1688306830091,0.34279166,30547.0,30546.0,0.39211252]
[1688306834690,0.34279166,30547.0,30546.0,0.03131252]
[1688306834882,0.34279166,30547.0,30546.0,0.39211252]
[1688306837393,0.34279166,30547.0,30546.0,0.03131252]
[1688306837595,0.34279166,30547.0,30546.0,0.39211252]
[1688306839999,0.34279166,30547.0,30546.0,0.03131252]
[1688306840201,0.34279166,30547.0,30546.0,0.39211252]
[1688306841002,0.34279166,30547.0,30546.0,0.39189203]
[1688306842705,0.34279166,30547.0,30546.0,0.63959203]
[1688306846504,0.34279166,30547.0,30546.0,0.27879203]
[1688306846701,0.34279166,30547.0,30546.0,0.63959203]
[1688306855707,0.34293288,30547.0,30546.0,0.63879203]
[1688306860012,0.34293288,30547.0,30546.0,0.27799203]
[1688306860216,0.34293288,30547.0,30546.0,0.63879203]
[1688306862820,0.09523288,30547.0,30546.0,0.63799203]
[1688306878018,0.09523288,30547.0,30546.0,0.27719203]
[1688306878213,0.09523288,30547.0,30546.0,0.63799203]
[1688306879124,0.09523288,30547.0,30546.0,0.27719203]
[1688306879427,0.09523288,30547.0,30546.0,0.63799203]
[1688306881421,0.09534288,30547.0,30546.0,0.63799203]
[1688306891840,0.09534288,30547.0,30546.0,0.27719203]
[1688306892023,0.09534288,30547.0,30546.0,0.63799203]
[1688306899640,0.09534288,30547.0,30546.0,0.27719203]
[1688306900042,0.09534288,30547.0,30546.0,0.63799203]
[1688306904154,0.09534288,30547.0,30546.0,0.27719203]
[1688306904342,0.09534288,30547.0,30546.0,0.63799203]
[1688306912558,0.09534288,30547.0,30546.0,0.27719203]
[1688306912750,0.09534288,30547.0,30546.0,0.63799203]
[1688306913951,0.09534288,30547.0,30546.0,0.27719203]
[1688306914158,0.09534288,30547.0,30546.0,0.63799203]
[1688306917662,0.09534288,30547.0,30546.0,0.27719203]
[1688306918158,0.09534288,30547.0,30546.0,0.63799203]
[1688306921158,0.09534288,30547.0,30546.0,0.27719203]
[1688306921359,0.09534288,30547.0,30546.0,0.63799203]
[1688306924574,0.09534288,30547.0,30546.0,0.6636144]
[1688306929679,0.09534288,30547.0,30546.0,0.3028144]
[1688306929873,0.09534288,30547.0,30546.0,0.6636144]
[1688306930766,0.09534288,30547.0,30546.0,0.3028144]
[1688306930966,0.09534288,30547.0,30546.0,0.6636144]
[1688306931466,0.09534288,30547.0,30546.0,0.2728144]
[1688306931772,0.09534288,30547.0,30546.0,0.6336144]
[1688306931979,0.09534288,30547.0,30546.0,0.2728144]
[1688306932283,0.09534288,30547.0,30546.0,0.6532574]
[1688306938679,0.0948519,30547.0,30546.0,0.6532574]
[1688306942678,0.0948519,30547.0,30546.0,0.2924574]
[1688306942868,0.0948519,30547.0,30546.0,0.6532574]
[1688306945288,0.09856739,30547.0,30546.0,0.62763503]
[1688306946077,0.08418923,30547.0,30546.0,0.62763503]
[1688306949888,0.08418923,30547.0,30546.0,0.26683503]
[1688306950084,0.08418923,30547.0,30546.0,0.98843503]
[1688306959094,0.08466273,30549.0,30546.0,0.98843503]
[1688306959293,0.08466273,30549.0,30548.0,0.2469]
[1688306959501,0.08466273,30549.0,30548.0,0.266542]
[1688306959797,0.00049104,30551.0,30548.0,0.266542]
[1688306959798,0.08466273,30550.0,30548.0,0.266542]
[1688306959985,0.08466273,30549.0,30548.0,0.019642]
[1688306960188,0.00049104,30551.0,30548.0,0.952642]
[1688306960189,0.08466277,30550.0,30548.0,0.952642]
[1688306960389,0.08466277,30549.0,30548.0,0.706642]
[1688306960590,0.08466277,30549.0,30548.0,0.953642]
[1688306961101,0.08466277,30549.0,30548.0,0.95473402]
[1688306961699,0.08466277,30549.0,30548.0,0.59393402]
[1688306962095,0.08466277,30549.0,30548.0,1.31553402]
[1688306962792,0.08466277,30549.0,30548.0,0.59393402]
[1688306963297,0.08466277,30549.0,30548.0,1.31553402]
[1688306968304,0.10089688,30549.0,30548.0,1.31553402]
[1688306968804,0.10089688,30549.0,30548.0,0.59393402]
[1688306969101,0.10089688,30549.0,30548.0,1.31553402]
[1688306969309,0.10089688,30549.0,30548.0,0.59393402]
[1688306969493,0.10089688,30549.0,30548.0,1.31553402]
[1688306969691,0.10089688,30549.0,30548.0,0.59393402]
[1688306969894,0.10089688,30549.0,30548.0,1.31553402]
[1688306970107,0.10089688,30549.0,30548.0,0.59393402]
[1688306970302,0.10089688,30549.0,30548.0,1.31553402]
[1688306973001,0.10089688,30549.0,30548.0,0.59393402]
[1688306973206,0.10089688,30549.0,30548.0,1.31553402]
[1688307006117,0.09482986,30549.0,30548.0,1.31553402]
[1688307009729,0.09482986,30549.0,30548.0,0.59393402]
[1688307009919,0.09482986,30549.0,30548.0,1.31553402]
[1688307010224,0.08466277,30549.0,30548.0,1.31553402]
[1688307013521,0.08466277,30549.0,30548.0,1.314442]
[1688307013716,0.09495683,30549.0,30548.0,1.314442]
[1688307013923,0.09495683,30549.0,30548.0,1.31553402]
[1688307018935,0.09495683,30549.0,30548.0,1.06853402]
[1688307019631,0.09495683,30549.0,30548.0,0.34693402]
[1688307019829,0.09495683,30549.0,30548.0,1.06853402]
[1688307020031,0.09495683,30549.0,30548.0,0.34693402]
[1688307020227,0.09495683,30549.0,30548.0,1.06853402]
[1688307031146,0.09495683,30549.0,30548.0,0.34693402]
[1688307031348,0.09495683,30549.0,30548.0,1.06853402]
[1688307035055,0.09495683,30549.0,30548.0,0.34693402]
[1688307035260,0.09495683,30549.0,30548.0,0.70773402]
[1688307036364,0.09495683,30549.0,30548.0,0.706642]
[1688307036563,0.11459883,30549.0,30548.0,0.706642]
[1688307037467,0.11459883,30549.0,30548.0,0.70773402]
[1688307039761,0.14119391,30549.0,30548.0,0.70773402]
[1688307040761,0.13650688,30549.0,30548.0,0.70773402]
[1688307041769,0.11686488,30549.0,30548.0,0.70773402]
[1688307045567,0.11686488,30549.0,30548.0,0.34693402]
[1688307045762,0.11686488,30549.0,30548.0,0.70773402]
[1688307046161,0.11686488,30549.0,30548.0,0.706642]
[1688307046763,0.11686488,30549.0,30548.0,0.70773402]
[1688307046963,0.11686488,30549.0,30548.0,0.706642]
[1688307047267,0.11686488,30549.0,30548.0,0.70773402]
[1688307048065,0.11686488,30549.0,30548.0,0.706642]
[1688307048266,0.13650688,30549.0,30548.0,0.706642]
[1688307048462,0.13650688,30549.0,30548.0,0.380442]
[1688307049669,0.15535633,30549.0,30548.0,0.380442]
[1688307057074,0.15535633,30549.0,30548.0,0.019642]
[1688307057268,0.15535633,30549.0,30548.0,0.380442]
[1688307057875,0.15535633,30549.0,30548.0,0.019642]
[1688307058062,0.15535633,30549.0,30548.0,0.380442]
[1688307058476,0.15535633,30549.0,30548.0,0.38153402]
[1688307058669,0.13650688,30549.0,30548.0,0.38153402]
[1688307059068,0.13650688,30549.0,30548.0,0.380442]
[1688307059471,0.13650688,30549.0,30548.0,0.38153402]
[1688307060874,0.13650688,30549.0,30548.0,0.380442]
[1688307061063,0.13650688,30549.0,30548.0,0.38153402]
[1688307062267,0.11686488,30549.0,30548.0,0.38153402]
[1688307062468,0.11686488,30549.0,30548.0,0.69103402]
[1688307063574,0.11686488,30549.0,30548.0,0.33023402]
[1688307063773,0.11686488,30549.0,30548.0,0.69103402]
[1688307066479,0.11686488,30549.0,30548.0,0.689942]
[1688307066678,0.11686488,30549.0,30548.0,0.69103402]
[1688307068586,0.11686488,30549.0,30548.0,0.689942]
[1688307069270,0.11686488,30549.0,30548.0,0.69103402]
[1688307069477,0.11686488,30549.0,30548.0,0.689942]
[1688307069982,0.11686488,30549.0,30548.0,0.69103402]
[1688307070683,0.0902698,30549.0,30548.0,0.69103402]
[1688307072683,0.0902698,30549.0,30548.0,0.329142]
[1688307072878,0.0902698,30549.0,30548.0,0.689942]
[1688307073083,0.0902698,30549.0,30548.0,0.69103402]
[1688307073384,0.0902698,30549.0,30548.0,0.689942]
[1688307073587,0.0902698,30549.0,30548.0,0.69103402]
[1688307073788,0.0902698,30549.0,30548.0,0.689942]
[1688307076491,0.0902698,30549.0,30548.0,0.329142]
[1688307076691,0.0902698,30549.0,30548.0,0.689942]
[1688307077491,0.10911925,30549.0,30548.0,0.689942]
[1688307077883,0.10911925,30549.0,30548.0,0.329142]
[1688307078087,0.10911925,30549.0,30548.0,0.689942]
[1688307081494,0.10911925,30549.0,30548.0,0.329142]
[1688307081691,0.10911925,30549.0,30548.0,0.689942]
[1688307082194,0.0902698,30549.0,30548.0,0.69103402]
[1688307082790,0.0902698,30549.0,30548.0,0.689942]
[1688307084395,0.0902698,30549.0,30548.0,0.69103402]
[1688307084698,0.0902698,30549.0,30548.0,0.689942]
[1688307085086,0.0902698,30549.0,30548.0,0.69103402]
[1688307085489,0.0902698,30549.0,30548.0,0.689942]
[1688307087399,0.0902698,30549.0,30548.0,0.69103402]
[1688307088396,0.0902698,30549.0,30548.0,0.689942]
[1688307089794,0.0902698,30549.0,30548.0,0.69103402]
[1688307094108,0.0902698,30549.0,30548.0,0.33023402]
[1688307094296,0.0902698,30549.0,30548.0,1.05183402]
[1688307112126,0.0902698,30549.0,30548.0,1.10183402]
[1688307112326,0.09249563,30549.0,30548.0,1.10183402]
[1688307112627,0.08466277,30549.0,30548.0,1.10183402]
[1688307120235,0.00049104,30551.0,30548.0,1.10183402]
[1688307120434,0.09248798,30550.0,30549.0,0.00109202]
[1688307120740,0.09248798,30550.0,30548.0,1.100742]
[1688307120939,0.00049104,30551.0,30548.0,1.100742]
[1688307120940,0.08465319,30549.0,30548.0,1.100742]
[1688307121134,0.00049104,30551.0,30549.0,0.00109202]
[1688307121443,0.09248829,30550.0,30549.0,0.049103]
[1688307121637,0.08465329,30550.0,30549.0,0.049103]
[1688307122434,0.08465329,30550.0,30549.0,0.05019502]
[1688307130437,0.08465329,30550.0,30549.0,0.77179502]
[1688307132445,0.08465329,30550.0,30549.0,1.26719502]
[1688307133643,0.08465329,30550.0,30549.0,1.29379478]
[1688307138148,0.08465329,30550.0,30549.0,0.57219478]
[1688307138349,0.08465329,30550.0,30549.0,1.29379478]
[1688307140149,0.08465329,30550.0,30549.0,0.57219478]
[1688307140351,0.08465329,30550.0,30549.0,1.29379478]
[1688307140551,0.09249288,30550.0,30549.0,1.29379478]
[1688307140850,0.08465329,30550.0,30549.0,1.29379478]
[1688307142158,0.08465329,30550.0,30549.0,0.57219478]
[1688307142344,0.08465329,30550.0,30549.0,1.29379478]
[1688307150159,0.08465329,30550.0,30549.0,0.57219478]
[1688307150557,0.09249515,30550.0,30549.0,1.29379478]
[1688307151059,0.08465329,30550.0,30549.0,1.29379478]
[1688307152562,0.08465329,30550.0,30549.0,0.57219478]
[1688307152761,0.09249558,30550.0,30549.0,1.29379478]
[1688307152963,0.08465329,30550.0,30549.0,1.29379478]
[1688307158962,0.08465329,30550.0,30549.0,1.04500276]
[1688307159269,0.0925589,30550.0,30549.0,1.04500276]
[1688307160468,0.0925589,30550.0,30549.0,1.04609478]
[1688307162471,0.11140835,30550.0,30549.0,1.018403]
[1688307162865,0.14927904,30550.0,30549.0,1.018403]
[1688307163659,0.12963804,30550.0,30549.0,1.018403]
[1688307165663,0.11140835,30550.0,30549.0,1.018403]
[1688307165865,0.12963804,30550.0,30549.0,1.018403]
[1688307166175,0.11140835,30550.0,30549.0,1.018403]
[1688307166365,0.12963804,30550.0,30549.0,1.018403]
[1688307167369,0.11140835,30550.0,30549.0,1.018403]
[1688307168582,0.13104935,30550.0,30549.0,1.018403]
[1688307169768,0.14927904,30550.0,30549.0,1.018403]
[1688307170383,0.13104935,30550.0,30549.0,1.018403]
[1688307170588,0.14927904,30550.0,30549.0,1.018403]
[1688307170882,0.13104935,30550.0,30549.0,1.018403]
[1688307172983,0.13104935,30550.0,30549.0,0.296803]
[1688307173278,0.13104935,30550.0,30549.0,0.657603]
[1688307173982,0.13104935,30550.0,30549.0,0.65869502]
[1688307174174,0.13104935,30550.0,30549.0,0.657603]
[1688307174573,0.11140835,30550.0,30549.0,0.657603]
[1688307179893,0.12963804,30550.0,30549.0,0.657603]
[1688307180287,0.13104935,30550.0,30549.0,0.657603]
[1688307180481,0.14927904,30550.0,30549.0,0.657603]
[1688307182473,0.14927904,30550.0,30549.0,0.296803]
[1688307182777,0.14927904,30550.0,30549.0,0.657603]
[1688307182977,0.13104935,30550.0,30549.0,0.657603]
[1688307183381,0.14927904,30550.0,30549.0,0.657603]
[1688307184587,0.13104935,30550.0,30549.0,0.657603]
[1688307190685,0.13104935,30550.0,30549.0,0.65869502]
[1688307190885,0.13104935,30550.0,30549.0,0.657603]
[1688307191494,0.13104935,30550.0,30549.0,0.65869502]
[1688307193094,0.13104935,30550.0,30549.0,0.657603]
[1688307193493,0.13104935,30550.0,30549.0,0.296803]
[1688307193687,0.13104935,30550.0,30549.0,0.657603]
[1688307196690,0.13104935,30550.0,30549.0,0.65869502]
[1688307197088,0.13104935,30550.0,30549.0,0.657603]
[1688307197298,0.1121999,30550.0,30549.0,0.65869502]
[1688307197696,0.1121999,30550.0,30549.0,0.657603]
[1688307197897,0.1121999,30550.0,30549.0,0.65869502]
[1688307198100,0.1121999,30550.0,30549.0,0.657603]
[1688307198498,0.13104935,30550.0,30549.0,0.657603]
[1688307200198,0.14927904,30550.0,30549.0,0.657603]
[1688307200400,0.13104935,30550.0,30549.0,0.657603]
[1688307203102,0.1121999,30550.0,30549.0,0.65869502]
[1688307203890,0.1121999,30550.0,30549.0,0.657603]
[1688307204604,0.13104935,30550.0,30549.0,0.657603]
[1688307205599,0.13104935,30550.0,30549.0,0.65869502]
[1688307205996,0.13104935,30550.0,30549.0,0.657603]
[1688307206205,0.13104935,30550.0,30549.0,0.65869502]
[1688307206614,0.13104935,30550.0,30549.0,0.657603]
[1688307206911,0.14927904,30550.0,30549.0,0.657603]
[1688307207300,0.13104935,30550.0,30549.0,0.657603]
[1688307209407,0.14927904,30550.0,30549.0,0.296803]
[1688307209607,0.13104935,30550.0,30549.0,0.657603]
[1688307212005,0.13104935,30550.0,30549.0,0.296803]
[1688307212201,0.13104935,30550.0,30549.0,0.657603]
[1688307213206,0.13104935,30550.0,30549.0,0.296803]
[1688307213409,0.13104935,30550.0,30549.0,0.657603]
[1688307214811,0.13104935,30550.0,30549.0,0.296803]
[1688307215014,0.13104935,30550.0,30549.0,0.657603]
[1688307216816,0.13104935,30550.0,30549.0,0.296803]
[1688307217015,0.13104935,30550.0,30549.0,0.657603]
[1688307222620,0.14927904,30550.0,30549.0,0.657603]
[1688307223021,0.13104935,30550.0,30549.0,0.657603]
[1688307223426,0.14927904,30550.0,30549.0,0.657603]
[1688307224027,0.13104935,30550.0,30549.0,0.657603]
[1688307225420,0.14927904,30550.0,30549.0,0.657603]
[1688307225728,0.13104935,30550.0,30549.0,0.657603]
[1688307226323,0.13104935,30550.0,30549.0,0.296803]
[1688307226527,0.13104935,30550.0,30549.0,0.657603]
[1688307227322,0.1121999,30550.0,30549.0,0.65869502]
[1688307228131,0.1121999,30550.0,30549.0,0.99059502]
[1688307228522,0.1121999,30550.0,30549.0,0.989503]
[1688307229932,0.13104935,30550.0,30549.0,0.989503]
[1688307231732,0.13104935,30550.0,30549.0,0.628703]
[1688307232030,0.13104935,30550.0,30549.0,0.989503]
[1688307233037,0.13104935,30550.0,30549.0,0.628703]
[1688307233231,0.13104935,30550.0,30549.0,0.989503]
[1688307233628,0.1121999,30550.0,30549.0,0.989503]
[1688307235233,0.1121999,30550.0,30549.0,0.628703]
[1688307235429,0.1121999,30550.0,30549.0,0.989503]
[1688307240041,0.13104935,30550.0,30549.0,0.989503]
[1688307240440,0.14927904,30550.0,30549.0,0.989503]
[1688307241730,0.13104935,30550.0,30549.0,0.989503]
[1688307242931,0.13104935,30550.0,30549.0,0.628703]
[1688307243141,0.13104935,30550.0,30549.0,0.989503]
[1688307244040,0.13104935,30550.0,30549.0,0.628703]
[1688307244236,0.13104935,30550.0,30549.0,0.989503]
[1688307245337,0.13104935,30550.0,30549.0,0.99059502]
[1688307245643,0.1121999,30550.0,30549.0,0.99059502]
[1688307246245,0.1121999,30550.0,30549.0,0.989503]